bitfinex-derivatives/quotes_BTCF0:USTF0_20251225
["timestamp","ask_amount","ask_price","bid_price","bid_amount"]
[1766667049669,0.0336,87610.0,87595.0,0.05716]
[1766667050579,0.0156,87610.0,87596.0,0.0114228]
[1766667050774,0.0096,87610.0,87596.0,0.0114228]
[1766667050978,0.0036,87610.0,87596.0,0.0114228]
[1766667056587,0.0036,87610.0,87595.0,0.05716]
[1766667056773,0.0036,87610.0,87595.0,0.0685829]
[1766667058185,0.0114212,87609.0,87595.0,0.05716]
[1766667061777,0.0036,87610.0,87593.0,0.00017132]
[1766667061978,0.0114221,87602.0,87593.0,0.00017132]
[1766667065486,0.0114221,87602.0,87589.0,0.04725601]
[1766667065678,0.0114221,87602.0,87589.0,0.07725601]
[1766667067387,0.0114224,87600.0,87589.0,0.07725601]
[1766667072890,0.011422,87603.0,87589.0,0.07725601]
[1766667074098,0.011422,87603.0,87589.0,0.08867971]
[1766667077497,0.0036,87610.0,87589.0,0.08867971]
[1766667079299,0.0114216,87606.0,87589.0,0.08867971]
[1766667080801,0.0114216,87606.0,87591.0,0.0114235]
[1766667083904,0.0114216,87606.0,87589.0,0.04725601]
[1766667084107,0.0114216,87606.0,87589.0,0.07725601]
[1766667086301,0.0114216,87606.0,87590.0,0.0114236]
[1766667086894,0.0114212,87609.0,87592.0,0.0114233]
[1766667087494,0.0114214,87607.0,87592.0,0.0114233]
[1766667088000,0.0114214,87607.0,87589.0,0.05867971]
[1766667088210,0.0114214,87607.0,87589.0,0.08867971]
[1766667093811,0.0114217,87605.0,87589.0,0.08867971]
[1766667094012,0.011422,87603.0,87589.0,0.08867971]
[1766667096614,0.005422,87603.0,87589.0,0.08867971]
[1766667097118,0.0114216,87606.0,87589.0,0.08867971]
[1766667097914,0.0114216,87606.0,87589.0,0.08863971]
[1766667102817,0.0114218,87604.0,87589.0,0.08863971]
[1766667111323,0.0113818,87604.0,87589.0,0.08863971]
[1766667115633,0.04463554,87610.0,87589.0,0.08863971]
[1766667116432,0.0114217,87606.0,87589.0,0.08863971]
[1766667116637,0.0054217,87606.0,87591.0,0.0114235]
[1766667116822,0.0036,87610.0,87591.0,0.0114235]
[1766667118234,0.0114215,87607.0,87591.0,0.0114235]
[1766667119532,0.0054215,87607.0,87591.0,0.0114235]
[1766667125238,0.0054215,87607.0,87593.0,0.0114232]
[1766667125436,0.0150211,87610.0,87595.0,0.0114229]
[1766667126041,0.0114213,87608.0,87592.0,0.0114232]
[1766667128546,0.0114216,87606.0,87592.0,0.0114232]
[1766667131147,0.0114216,87606.0,87591.0,0.0114234]
[1766667131343,0.0114218,87604.0,87591.0,0.0114234]
[1766667135250,0.0114215,87607.0,87591.0,0.0114234]
[1766667144454,0.0114215,87607.0,87593.0,0.0114232]
[1766667153265,0.0114217,87605.0,87591.0,0.0114235]
[1766667153671,0.0114217,87605.0,87589.0,0.04721601]
[1766667153871,0.0114217,87605.0,87589.0,0.07721601]
[1766667158571,0.0036,87610.0,87592.0,0.0114233]
[1766667158766,0.0036,87610.0,87592.0,0.0314233]
[1766667159572,0.0150211,87610.0,87594.0,0.0114231]
[1766667162175,0.0114213,87608.0,87594.0,0.0114231]
[1766667180785,0.0036,87610.0,87594.0,0.0114231]
[1766667181988,0.0036,87610.0,87596.0,0.0114228]
[1766667183894,0.0114212,87609.0,87596.0,0.0114228]
[1766667185295,0.0114212,87609.0,87593.0,0.0114232]
[1766667192406,0.0114212,87609.0,87590.0,0.04108075]
[1766667192604,0.0114212,87609.0,87590.0,0.07108075]
[1766667193003,0.0114212,87609.0,87590.0,0.03]
[1766667193205,0.0114212,87609.0,87594.0,0.011423]
[1766667200715,0.0036,87610.0,87596.0,0.0114227]
[1766667201315,0.015021,87610.0,87596.0,0.0114227]
[1766667204113,0.015021,87610.0,87589.0,0.04721601]
[1766667204316,0.0114213,87608.0,87593.0,0.0114231]
[1766667209320,0.0114213,87608.0,87595.0,0.011423]
[1766667213925,0.0036,87610.0,87595.0,0.011423]
[1766667219427,0.0036,87610.0,87592.0,0.0114233]
[1766667220020,0.0114213,87609.0,87592.0,0.0114233]
[1766667220829,0.0114214,87607.0,87592.0,0.0114233]
[1766667224737,0.0114217,87605.0,87589.0,0.09972036]
[1766667225030,0.0114218,87604.0,87589.0,0.07721601]
[1766667231338,0.0114218,87604.0,87589.0,0.11829676]
[1766667241337,0.0114218,87604.0,87589.0,0.07721601]
[1766667241831,0.0114221,87602.0,87589.0,0.07721601]
[1766667242023,0.011422,87603.0,87589.0,0.07721601]
[1766667248644,0.0114223,87601.0,87589.0,0.07721601]
[1766667255448,0.0114219,87604.0,87589.0,0.07721601]
[1766667257952,0.0114221,87602.0,87589.0,0.07721601]
[1766667259748,0.0036,87610.0,87589.0,0.07721601]
[1766667262348,0.011422,87603.0,87589.0,0.07721601]
[1766667270655,0.0114216,87606.0,87589.0,0.07721601]
[1766667270955,0.0114216,87606.0,87590.0,0.0114236]
[1766667271148,0.0114216,87606.0,87590.0,0.0414236]
[1766667272454,0.0114216,87606.0,87591.0,0.05716]
[1766667272659,0.0114216,87606.0,87591.0,0.08716]
[1766667275355,0.0036,87610.0,87591.0,0.08716]
[1766667276352,0.0114216,87606.0,87591.0,0.08716]
[1766667284158,0.0036,87610.0,87591.0,0.08716]
[1766667284459,0.0054214,87607.0,87591.0,0.08716]
[1766667284762,0.0054214,87607.0,87592.0,0.0114233]
[1766667284954,0.0054214,87607.0,87592.0,0.0414233]
[1766667286060,0.0036,87610.0,87592.0,0.0414233]
[1766667286761,0.0150211,87610.0,87592.0,0.0414233]
[1766667288456,0.0114213,87608.0,87592.0,0.0414233]
[1766667292757,0.0036,87610.0,87592.0,0.0414233]
[1766667292758,0.0114216,87606.0,87592.0,0.0414233]
[1766667292964,0.0114216,87606.0,87592.0,0.03]
[1766667293351,0.0114218,87604.0,87592.0,0.03]
[1766667295262,0.0114221,87602.0,87592.0,0.03]
[1766667296267,0.0114224,87600.0,87592.0,0.03]
[1766667296763,0.0114229,87596.0,87591.0,0.05716]
[1766667296963,0.0114229,87596.0,87587.0,0.00017132]
[1766667297268,0.0114229,87596.0,87587.0,0.03017132]
[1766667301662,0.0114225,87599.0,87587.0,0.03017132]
[1766667303972,0.0114222,87602.0,87587.0,0.03017132]
[1766667306377,0.0036,87610.0,87587.0,0.03017132]
[1766667308182,0.0114223,87601.0,87587.0,0.03017132]
[1766667308372,0.0114225,87599.0,87587.0,0.03017132]
[1766667314791,0.0114218,87604.0,87588.0,0.0114238]
[1766667316777,0.0114215,87607.0,87590.0,0.0114235]
[1766667317179,0.00011386,87611.0,87592.0,0.0114233]
[1766667317491,0.05716,87612.0,87592.0,0.0785833]
[1766667317787,0.0114213,87608.0,87592.0,0.0785833]
[1766667318887,0.00017132,87609.0,87592.0,0.0785833]
[1766667319487,0.01159252,87609.0,87592.0,0.0785833]
[1766667321391,0.01159252,87609.0,87592.0,0.11966405]
[1766667322393,0.01159252,87609.0,87592.0,0.0785833]
[1766667323293,0.01159252,87609.0,87594.0,0.011423]
[1766667323590,0.01159252,87609.0,87594.0,0.041423]
[1766667326497,0.00017132,87609.0,87596.0,0.0114228]
[1766667329380,0.00017132,87609.0,87592.0,0.05716]
[1766667329586,0.00017132,87609.0,87593.0,0.0114231]
[1766667329786,0.00017132,87609.0,87593.0,0.0414231]
[1766667332896,0.0114213,87608.0,87593.0,0.0414231]
[1766667337001,0.0113813,87608.0,87593.0,0.0414231]
[1766667337308,0.0113813,87608.0,87593.0,0.0413831]
[1766667339097,0.0113813,87608.0,87595.0,0.0114229]
[1766667339302,0.0114206,87614.0,87600.0,0.0114223]
[1766667339500,0.0250604,87615.0,87600.0,0.0114223]
[1766667341694,0.0114206,87613.0,87600.0,0.0114223]
[1766667343497,0.01364,87615.0,87600.0,0.0114223]
[1766667349311,0.0114205,87614.0,87600.0,0.0114223]
[1766667351616,5e-07,87614.0,87600.0,0.0114223]
[1766667352114,5e-07,87615.0,87602.0,0.011422]
[1766667352305,5e-07,87615.0,87604.0,0.0114217]
[1766667367539,5e-07,87615.0,87606.0,0.0114215]
[1766667367736,5e-07,87615.0,87608.0,0.0114213]
[1766667368732,5e-07,87615.0,87605.0,0.0114216]
[1766667369430,0.0114198,87620.0,87605.0,0.0114216]
[1766667370142,0.00753192,87623.0,87609.0,0.0114211]
[1766667370341,0.05716,87624.0,87609.0,0.0114211]
[1766667370742,0.05716,87624.0,87611.0,0.0114209]
[1766667375445,0.0114193,87623.0,87610.0,0.0114209]
[1766667375836,0.05716,87624.0,87610.0,0.0114209]
[1766667385156,0.05716,87624.0,87612.0,0.0114207]
[1766667390760,0.05716,87624.0,87614.0,0.0114205]
[1766667392547,0.05716,87624.0,87611.0,0.0114208]
[1766667395560,0.0114196,87621.0,87608.0,0.0114212]
[1766667397563,0.0685793,87624.0,87608.0,0.0114212]
[1766667400757,0.0685793,87624.0,87610.0,0.011421]
[1766667403666,0.05716,87624.0,87612.0,0.0114207]
[1766667404966,0.05245404,87630.0,87614.0,0.0114205]
[1766667405163,0.05712,87629.0,87614.0,0.0114205]
[1766667405864,0.0114187,87628.0,87614.0,0.0114205]
[1766667412286,0.0114187,87628.0,87611.0,0.0114209]
[1766667412684,0.0114189,87626.0,87608.0,0.0114212]
[1766667412883,0.0114189,87626.0,87608.0,0.0314212]
[1766667413380,0.0114193,87624.0,87608.0,0.0314212]
[1766667414388,0.0114193,87624.0,87610.0,0.011421]
[1766667414589,0.0114193,87624.0,87610.0,0.031421]
[1766667415887,0.0114193,87624.0,87610.0,0.031381]
[1766667416088,0.0113793,87624.0,87610.0,0.031381]
[1766667416591,0.0114195,87622.0,87610.0,0.02]
[1766667420295,0.0114192,87625.0,87611.0,0.0114209]
[1766667435012,0.0114188,87628.0,87611.0,0.0114209]
[1766667435307,0.0114188,87628.0,87613.0,0.0114206]
[1766667436314,0.04103554,87627.0,87613.0,0.0114206]
[1766667437614,0.0114189,87626.0,87613.0,0.0114206]
[1766667440314,0.0114189,87626.0,87607.0,0.00017122]
[1766667440315,0.0114189,87626.0,87610.0,0.0114209]
[1766667440521,0.0114189,87626.0,87610.0,0.0314209]
[1766667457733,0.0114192,87624.0,87610.0,0.0314209]
[1766667460334,0.0114196,87622.0,87610.0,0.02]
[1766667460527,0.0114199,87619.0,87610.0,0.02]
[1766667464436,0.0114188,87627.0,87601.0,0.04108075]
[1766667464737,0.0114188,87627.0,87601.0,0.03]
[1766667465131,0.0114188,87627.0,87602.0,0.011422]
[1766667465333,0.0114201,87617.0,87602.0,0.041422]
[1766667478847,0.0114201,87617.0,87604.0,0.0114218]
[1766667479040,0.00017088,87618.0,87606.0,0.0114215]
[1766667479240,0.00017088,87618.0,87606.0,0.0414215]
[1766667484254,0.00017088,87618.0,87606.0,0.03]
[1766667490060,0.01159088,87618.0,87606.0,0.03]
[1766667498366,0.0685386,87629.0,87606.0,0.08712]
[1766667498565,0.0685386,87629.0,87612.0,0.0114207]
[1766667499364,0.0685386,87629.0,87609.0,0.0114211]
[1766667500251,0.0114189,87627.0,87609.0,0.0114211]
[1766667506365,0.0114189,87627.0,87611.0,0.0114208]
[1766667509460,0.05712,87629.0,87606.0,0.09820075]
[1766667509662,0.05712,87629.0,87613.0,0.0114206]
[1766667510755,0.04103554,87634.0,87613.0,0.0114206]
[1766667510756,0.0114181,87633.0,87619.0,0.0114198]
[1766667511359,0.05712,87634.0,87619.0,0.0114198]
[1766667511561,0.05712,87634.0,87621.0,0.0114196]
[1766667515367,0.0685379,87634.0,87621.0,0.0114196]
[1766667515968,0.0685379,87634.0,87619.0,0.00017122]
[1766667515969,0.0114182,87632.0,87619.0,0.00017122]
[1766667516169,0.05712,87634.0,87619.0,0.00017122]
[1766667517271,0.011419,87626.0,87619.0,0.00017122]
[1766667517470,0.011419,87626.0,87611.0,0.0114208]
[1766667517672,0.011419,87626.0,87611.0,0.0414208]
[1766667519074,0.011419,87626.0,87613.0,0.0114206]
[1766667519274,0.011419,87626.0,87613.0,0.0414206]
[1766667519873,0.00017122,87627.0,87613.0,0.0414206]
[1766667523577,0.01159002,87627.0,87613.0,0.03]
[1766667534677,0.00017122,87627.0,87613.0,0.03]
[1766667534877,0.0114195,87622.0,87613.0,0.03]
[1766667544387,0.0114192,87625.0,87613.0,0.03]
[1766667549190,0.0114194,87623.0,87613.0,0.03]
[1766667550188,0.00017122,87627.0,87613.0,0.03]
[1766667550488,0.0114193,87624.0,87613.0,0.03]
[1766667552788,0.01159012,87627.0,87613.0,0.03]
[1766667557296,0.0114191,87625.0,87613.0,0.03]
[1766667559695,0.00017122,87627.0,87613.0,0.03]
[1766667559696,0.0114194,87623.0,87613.0,0.03]
[1766667561291,0.0114199,87619.0,87610.0,0.00017122]
[1766667561499,0.00017122,87627.0,87610.0,0.03017122]
[1766667561798,0.0114205,87614.0,87610.0,2e-08]
[1766667562507,0.0114202,87617.0,87610.0,2e-08]
[1766667563096,0.0114198,87620.0,87610.0,2e-08]
[1766667566094,0.01159012,87627.0,87610.0,0.01142102]
[1766667566285,0.00017122,87627.0,87610.0,2e-08]
[1766667567201,0.0114193,87624.0,87610.0,2e-08]
[1766667567405,0.01159002,87627.0,87610.0,2e-08]
[1766667568103,0.01159002,87627.0,87611.0,0.0114209]
[1766667568303,0.01159002,87627.0,87611.0,0.0414209]
[1766667571909,0.0114187,87628.0,87612.0,0.0114207]
[1766667572210,0.0114187,87628.0,87612.0,0.0414207]
[1766667572614,0.011419,87626.0,87612.0,0.0414207]
[1766667572915,0.011419,87626.0,87612.0,0.03]
[1766667575310,0.00017122,87628.0,87612.0,0.03]
[1766667576313,0.0114188,87627.0,87612.0,0.03]
[1766667580313,0.0114191,87625.0,87612.0,0.03]
[1766667595025,0.0114193,87623.0,87612.0,0.03]
[1766667597524,0.00017122,87628.0,87612.0,0.03]
[1766667599226,0.0114191,87625.0,87612.0,0.03]
[1766667601028,0.0114193,87623.0,87612.0,0.03]
[1766667601325,0.00017122,87628.0,87612.0,0.03]
[1766667601326,0.011419,87626.0,87612.0,0.03]
[1766667601525,0.00017122,87628.0,87612.0,0.03]
[1766667602027,0.00017122,87628.0,87614.0,0.0114205]
[1766667604728,0.01158992,87628.0,87614.0,0.0114205]
[1766667605329,0.01158992,87628.0,87611.0,0.05250155]
[1766667605628,0.01158992,87628.0,87611.0,0.08250155]
[1766667605828,0.011419,87626.0,87611.0,0.08250155]
[1766667606029,0.0114192,87624.0,87611.0,0.07108075]
[1766667606230,0.00017122,87628.0,87611.0,0.07108075]
[1766667606521,0.00017122,87628.0,87611.0,0.03]
[1766667606728,0.0114194,87623.0,87603.0,7e-08]
[1766667606924,0.0114194,87623.0,87603.0,0.03]
[1766667607124,0.0114207,87613.0,87603.0,0.03]
[1766667607929,0.0184,87619.0,87599.0,0.05729122]
[1766667607930,0.0184,87619.0,87599.0,0.00017122]
[1766667608127,0.0184,87619.0,87599.0,0.03017122]
[1766667608430,0.0114208,87612.0,87599.0,0.03017122]
[1766667609232,0.0114204,87615.0,87599.0,0.03017122]
[1766667610333,0.0114207,87613.0,87599.0,0.03017122]
[1766667617836,0.0114209,87611.0,87599.0,0.03017122]
[1766667620644,0.0114212,87609.0,87599.0,0.03017122]
[1766667621638,0.0114201,87617.0,87599.0,0.03017122]
[1766667623334,0.0114214,87608.0,87599.0,0.03017122]
[1766667625046,0.011421,87611.0,87599.0,0.03017122]
[1766667627738,1.47512,87619.0,87599.0,0.03017122]
[1766667630247,0.0114209,87611.0,87599.0,0.03017122]
[1766667630548,0.05712,87610.0,87599.0,0.03017122]
[1766667633349,0.0114212,87609.0,87599.0,0.03017122]
[1766667635939,0.05712,87610.0,87599.0,0.03017122]
[1766667636345,0.05712,87610.0,87599.0,2e-08]
[1766667638251,0.0114217,87606.0,87599.0,2e-08]
[1766667638450,0.0114217,87606.0,87596.0,0.00017122]
[1766667638645,0.0114217,87606.0,87596.0,0.03017122]
[1766667642464,0.0114212,87609.0,87596.0,0.03017122]
[1766667648080,0.0114214,87607.0,87596.0,0.03017122]
[1766667654984,0.0114217,87605.0,87596.0,0.03017122]
[1766667655282,0.0114214,87608.0,87596.0,0.03017122]
[1766667657890,0.0114216,87606.0,87596.0,0.03017122]
[1766667663500,0.0114212,87609.0,87596.0,0.03017122]
[1766667665099,0.0114215,87607.0,87596.0,0.03017122]
[1766667669996,0.05729122,87610.0,87596.0,0.03017122]
[1766667671206,0.0114216,87606.0,87596.0,0.03017122]
[1766667671699,0.0114218,87604.0,87596.0,0.03017122]
[1766667673398,0.05729122,87610.0,87596.0,0.03017122]
[1766667673603,0.0114221,87602.0,87596.0,0.03017122]
[1766667676100,0.0114223,87600.0,87593.0,0.0022833]
[1766667676404,0.0114223,87600.0,87593.0,0.03]
[1766667680508,0.011422,87603.0,87593.0,0.03]
[1766667681303,0.0114222,87601.0,87593.0,0.03]
[1766667682507,0.0114219,87604.0,87593.0,0.03]
[1766667683106,0.0114221,87602.0,87593.0,0.03]
[1766667683305,0.0114221,87602.0,87588.0,0.00017122]
[1766667683508,0.0114221,87602.0,87588.0,0.03017122]
[1766667688609,0.0114224,87600.0,87588.0,0.03017122]
[1766667690509,0.0114232,87593.0,87588.0,0.03017122]
[1766667690703,0.011424,87587.0,87578.0,0.04106823]
[1766667690904,0.011424,87587.0,87579.0,0.00945934]
[1766667691909,0.00011037,87586.0,87579.0,0.00945934]
[1766667692913,0.0114243,87585.0,87579.0,0.00945934]
[1766667693415,0.00011037,87586.0,87579.0,0.00945934]
[1766667694211,0.01153457,87586.0,87579.0,0.00945934]
[1766667694710,0.0114244,87584.0,87579.0,4e-08]
[1766667694912,0.00011037,87586.0,87574.0,6e-08]
[1766667695114,0.00011037,87586.0,87562.0,0.05716]
[1766667695314,0.0114249,87580.0,87562.0,0.08716]
[1766667696017,0.0114246,87583.0,87562.0,0.0985872]
[1766667696217,0.0114246,87583.0,87562.0,0.09870132]
[1766667696709,0.0114249,87581.0,87562.0,0.09870132]
[1766667697219,0.0114251,87579.0,87562.0,0.09870132]
[1766667700720,0.00011037,87586.0,87564.0,0.011427]
[1766667700721,0.0114246,87583.0,87564.0,0.011427]
[1766667701020,0.0114248,87581.0,87564.0,0.041427]
[1766667701612,0.00011037,87586.0,87564.0,0.041427]
[1766667701819,0.0114244,87585.0,87568.0,0.0114264]
[1766667702011,0.0114244,87585.0,87568.0,0.0414264]
[1766667703323,0.00011037,87586.0,87570.0,0.0114261]
[1766667703522,0.00011037,87586.0,87570.0,0.0414261]
[1766667704821,0.00011037,87586.0,87574.0,0.0114256]
[1766667705225,0.00011037,87586.0,87576.0,0.0114254]
[1766667705815,0.00011037,87586.0,87578.0,0.0114252]
[1766667707327,0.00011037,87586.0,87580.0,0.0114249]
[1766667707525,0.02156,87585.0,87580.0,0.0114249]
[1766667708014,0.02156,87585.0,87562.0,0.05727412]
[1766667708213,0.02156,87585.0,87575.0,0.0114256]
[1766667709329,0.02156,87585.0,87569.0,0.0114263]
[1766667709831,0.02156,87585.0,87569.0,0.0414263]
[1766667712520,0.0114245,87584.0,87569.0,0.03]
[1766667714430,0.0114247,87582.0,87569.0,0.03]
[1766667716534,0.011425,87580.0,87569.0,0.03]
[1766667717731,0.0114246,87583.0,87569.0,0.03]
[1766667722526,0.05716,87583.0,87570.0,0.0114262]
[1766667722726,0.01496,87583.0,87570.0,0.0414262]
[1766667722926,0.00296,87583.0,87570.0,0.0414262]
[1766667723638,0.00296,87583.0,87572.0,0.0114259]
[1766667723832,0.00296,87583.0,87572.0,0.0414259]
[1766667727030,0.00296,87583.0,87574.0,0.0114257]
[1766667727232,0.05116,87584.0,87574.0,0.0114257]
[1766667727432,0.04516,87584.0,87574.0,0.0114257]
[1766667734131,0.0114237,87590.0,87576.0,0.0114254]
[1766667734436,1.22e-06,87592.0,87585.0,0.0114242]
[1766667734627,0.0114223,87601.0,87585.0,0.0114242]
[1766667734822,0.06155747,87600.0,87585.0,0.0114242]
[1766667735020,0.02471747,87599.0,87585.0,0.0114242]
[1766667735232,0.02471747,87598.0,87585.0,0.0114242]
[1766667735535,0.02471747,87597.0,87585.0,0.0114242]
[1766667735733,0.03701122,87600.0,87585.0,0.0114242]
[1766667735935,0.02470935,87599.0,87585.0,0.0114242]
[1766667736131,0.02470935,87598.0,87585.0,0.0114242]
[1766667736336,0.05716,87597.0,87587.0,0.011424]
[1766667737631,0.00017122,87600.0,87587.0,0.011424]
[1766667737828,0.05716,87599.0,87587.0,0.011424]
[1766667742240,0.05716,87598.0,87589.0,0.0114237]
[1766667744532,0.05716,87598.0,87586.0,0.0114241]
[1766667744732,0.00017122,87600.0,87586.0,0.0114241]
[1766667744931,0.05716,87597.0,87586.0,0.0114241]
[1766667753142,0.00017122,87600.0,87583.0,0.00017122]
[1766667753336,0.00017122,87600.0,87589.0,0.0114237]
[1766667753536,0.0114225,87599.0,87589.0,0.02]
[1766667754546,0.00017122,87600.0,87589.0,0.02]
[1766667764153,0.0114225,87599.0,87589.0,0.02]
[1766667766051,0.0114225,87599.0,87580.0,0.06155457]
[1766667766255,0.0114225,87599.0,87580.0,0.03]
[1766667766454,0.0114228,87597.0,87581.0,0.0114248]
[1766667766654,0.0114228,87597.0,87581.0,0.0414248]
[1766667767045,0.00017122,87600.0,87581.0,0.0414248]
[1766667768251,0.0114225,87599.0,87581.0,0.0414248]
[1766667768448,0.0114225,87599.0,87583.0,0.0114245]
[1766667768648,0.0114225,87599.0,87583.0,0.0314245]
[1766667772356,0.00017122,87600.0,87585.0,0.0114242]
[1766667772661,0.05733122,87600.0,87585.0,0.0414242]
[1766667772863,0.05733122,87600.0,87587.0,0.011424]
[1766667773450,0.05733122,87600.0,87589.0,0.0114237]
[1766667773652,0.05733122,87600.0,87595.0,0.0114229]
[1766667773653,1.22e-06,87600.0,87595.0,0.0114229]
[1766667774653,1.22e-06,87600.0,87592.0,0.0114233]
[1766667776662,1.22e-06,87600.0,87593.0,0.0114232]
[1766667778366,1.22e-06,87600.0,87596.0,0.0114228]
[1766667780668,1.22e-06,87600.0,87590.0,0.0114235]
[1766667780867,1.22e-06,87600.0,87590.0,0.0414235]
[1766667781253,1.22e-06,87600.0,87590.0,0.03]
[1766667788376,0.0114227,87597.0,87582.0,0.0114246]
[1766667788568,0.0114227,87597.0,87582.0,0.0414246]
[1766667788765,0.0114227,87597.0,87582.0,0.0985846]
[1766667788968,0.0114227,87597.0,87582.0,0.08716]
[1766667789570,1.22e-06,87600.0,87582.0,0.08716]
[1766667789879,0.0114229,87596.0,87582.0,0.03]
[1766667792881,0.0114226,87599.0,87583.0,0.0114245]
[1766667793075,0.02527168,87598.0,87583.0,0.0414245]
[1766667793276,0.02527168,87597.0,87583.0,0.0414245]
[1766667793476,0.0114226,87599.0,87583.0,0.0414245]
[1766667793677,0.02527159,87598.0,87583.0,0.0414245]
[1766667793975,0.02527159,87597.0,87583.0,0.0414245]
[1766667794177,0.0114226,87599.0,87583.0,0.0414245]
[1766667794378,0.02527147,87598.0,87583.0,0.0414245]
[1766667794576,0.03669417,87597.0,87583.0,0.0414245]
[1766667794772,0.0114227,87597.0,87583.0,0.0414245]
[1766667800186,0.0114227,87597.0,87583.0,0.03]
[1766667803283,0.011423,87595.0,87583.0,0.03]
[1766667806089,0.0114227,87598.0,87583.0,0.03]
[1766667806493,0.0114227,87598.0,87583.0,0.0414245]
[1766667807890,0.0114227,87598.0,87583.0,0.03]
[1766667809089,0.0114229,87596.0,87583.0,0.03]
[1766667810991,0.0114234,87592.0,87583.0,0.03]
[1766667812092,0.0114237,87590.0,87583.0,0.03]
[1766667812286,0.0114233,87593.0,87583.0,0.03]
[1766667813893,0.0114229,87596.0,87583.0,0.03]
[1766667814393,0.0114232,87594.0,87583.0,0.03]
[1766667820793,0.0114232,87594.0,87583.0,0.02996]
[1766667820995,0.0113832,87594.0,87583.0,0.02996]
[1766667832816,0.05716,87595.0,87583.0,0.02996]
[1766667834003,0.068583,87595.0,87583.0,0.02996]
[1766667837312,0.05716,87595.0,87583.0,0.02996]
[1766667838116,0.05716,87595.0,87583.0,0.0413845]
[1766667838614,0.05716,87595.0,87585.0,0.0114243]
[1766667841117,0.05716,87595.0,87582.0,0.0114246]
[1766667841415,0.05716,87595.0,87582.0,0.0414246]
[1766667841615,0.02529413,87594.0,87582.0,0.0414246]
[1766667841813,0.05716,87595.0,87582.0,0.0414246]
[1766667842014,0.02529413,87594.0,87582.0,0.0414246]
[1766667842209,0.05716,87595.0,87582.0,0.0414246]
[1766667842409,0.05716,87598.0,87582.0,0.03]
[1766667842713,0.05716,87598.0,87585.0,0.0114242]
[1766667846012,0.05716,87598.0,87589.0,0.0114248]
[1766667846317,0.05716,87597.0,87580.0,0.00011412]
[1766667846519,0.05716,87597.0,87593.0,0.0114243]
[1766667846710,0.05716,87598.0,87593.0,0.0114243]
[1766667847513,0.05716,87598.0,87590.0,0.0114246]
[1766667847819,0.05716,87598.0,87580.0,0.00011412]
[1766667847820,0.05716,87598.0,87588.0,0.0114249]
[1766667849220,0.05716,87598.0,87590.0,0.0114247]
[1766667849625,0.05716,87598.0,87589.0,0.0114248]
[1766667854918,0.05716,87598.0,87586.0,0.0114251]
[1766667855119,0.05716,87598.0,87586.0,0.0414251]
[1766667859331,0.05716,87598.0,87589.0,0.0114247]
[1766667864834,0.05716,87598.0,87586.0,0.0114251]
[1766667865035,0.05716,87598.0,87586.0,0.0414251]
[1766667867840,0.05716,87598.0,87588.0,0.0114249]
[1766667870546,0.05716,87598.0,87580.0,0.00011412]
[1766667870748,0.0114239,87596.0,87580.0,0.03011412]
[1766667871650,0.0114239,87596.0,87582.0,0.0114257]
[1766667871843,0.0114239,87596.0,87582.0,0.0414257]
[1766667872151,0.05716,87598.0,87584.0,0.0114254]
[1766667872448,0.03624586,87597.0,87584.0,0.0414254]
[1766667872645,0.0114238,87597.0,87584.0,0.03]
[1766667874755,0.05716,87598.0,87584.0,0.03]
[1766667874957,0.02482054,87597.0,87584.0,0.03]
[1766667875156,0.0114238,87597.0,87584.0,0.03]
[1766667881963,0.0114241,87595.0,87584.0,0.03]
[1766667884164,0.0114243,87593.0,87584.0,0.03]
[1766667884360,0.011424,87596.0,87584.0,0.03]
[1766667890261,0.0114242,87594.0,87584.0,0.03]
[1766667891866,0.0114245,87592.0,87584.0,0.03]
[1766667892159,0.011425,87588.0,87580.0,0.00011412]
[1766667892364,0.011425,87588.0,87580.0,0.03011412]
[1766667894066,0.0114247,87591.0,87580.0,0.03011412]
[1766667900369,0.0114248,87589.0,87580.0,0.03011412]
[1766667902172,0.05716,87598.0,87580.0,0.03011412]
[1766667902375,0.0114246,87591.0,87580.0,0.03011412]
[1766667903970,0.0114243,87594.0,87580.0,0.03011412]
[1766667914179,0.0114245,87592.0,87580.0,0.03011412]
[1766667914575,0.0114239,87597.0,87580.0,0.03011412]
[1766667914778,0.02484079,87596.0,87580.0,0.03011412]
[1766667915084,0.02484079,87595.0,87580.0,0.03011412]
[1766667915380,0.0114239,87597.0,87580.0,0.03011412]
[1766667915580,0.02484113,87596.0,87580.0,0.03011412]
[1766667915780,0.02484113,87595.0,87580.0,0.03011412]
[1766667915981,0.0114239,87597.0,87580.0,0.03011412]
[1766667916180,0.0114248,87590.0,87580.0,0.03011412]
[1766667916984,0.011425,87588.0,87580.0,0.03011412]
[1766667917783,0.05716,87598.0,87580.0,0.03011412]
[1766667917978,0.02484205,87597.0,87580.0,0.03011412]
[1766667918180,0.02484205,87596.0,87580.0,0.03011412]
[1766667918383,0.02484205,87595.0,87580.0,0.03011412]
[1766667918685,0.0114249,87589.0,87580.0,0.03011412]
[1766667919186,0.05716,87598.0,87572.0,0.06155457]
[1766667919372,0.0114258,87582.0,87572.0,0.03]
[1766667919578,0.0114262,87579.0,87564.0,0.06155457]
[1766667919778,0.0114262,87579.0,87564.0,0.03]
[1766667920987,0.0114264,87577.0,87564.0,0.03]
[1766667925282,0.01159732,87580.0,87564.0,0.03]
[1766667925683,0.0114263,87578.0,87564.0,0.03]
[1766667930987,0.0114263,87578.0,87564.0,0.0414281]
[1766667931385,0.00017122,87580.0,87564.0,0.0414281]
[1766667931888,0.00017122,87580.0,87570.0,0.0114272]
[1766667937399,0.00017122,87580.0,87572.0,0.011427]
[1766667946319,0.00017122,87580.0,87572.0,0.0114269]
[1766667952722,0.00017122,87580.0,87563.0,0.06172457]
[1766667952922,0.00017122,87580.0,87566.0,0.0114278]
[1766667953122,0.00017122,87580.0,87566.0,0.0414278]
[1766667953309,0.01159732,87580.0,87566.0,0.0414278]
[1766667957724,0.00017122,87580.0,87568.0,0.0114276]
[1766667960128,0.00017122,87580.0,87570.0,0.0114273]
[1766667961430,0.01159722,87580.0,87566.0,0.0114278]
[1766667961629,0.00017122,87580.0,87566.0,0.03]
[1766667962121,0.0114262,87579.0,87566.0,0.03]
[1766667962728,0.01159722,87580.0,87567.0,0.0114277]
[1766667963028,0.01159722,87580.0,87567.0,0.0314277]
[1766667964634,0.01159722,87580.0,87567.0,0.02]
[1766667965831,0.0114263,87578.0,87567.0,0.02]
[1766667967628,0.0114267,87575.0,87567.0,0.02]
[1766667968133,0.0114264,87578.0,87567.0,0.02]
[1766667969631,0.00017122,87580.0,87567.0,0.02]